[Event "Early-Titled-Tuesday-Blitz-May-14-2024"]
[Site "Chess.com"]
[Date "2024.05.14"]
[Round "2"]
[White "Msb2"]
[Black "RuperezA"]
[Result "1-0"]
[WhiteElo "3058"]
[BlackElo "2660"]
[TimeControl "180+1"]
[EndTime "8:16:51 PDT"]
[Termination "Msb2 won by resignation"]

1. d4 {[%clk 0:03:00.9]} 1... e6 {[%clk 0:03:00.3]} 2. c4 {[%clk 0:03:01.2]}
2... Nf6 {[%clk 0:02:59.9]} 3. Nc3 {[%clk 0:03:01.7]} 3... d5 {[%clk 0:02:59.5]}
4. cxd5 {[%clk 0:03:02.6]} 4... exd5 {[%clk 0:03:00.3]} 5. Bg5 {[%clk 0:03:03]}
5... c6 {[%clk 0:03:00.7]} 6. e3 {[%clk 0:03:03.6]} 6... Be7 {[%clk 0:03:00.9]}
7. Bd3 {[%clk 0:03:04]} 7... Nbd7 {[%clk 0:03:00.7]} 8. h3 {[%clk 0:03:04.6]}
8... O-O {[%clk 0:02:59.1]} 9. Nf3 {[%clk 0:03:05.1]} 9... Nh5 {[%clk
0:02:57.8]} 10. Bxe7 {[%clk 0:03:01.9]} 10... Qxe7 {[%clk 0:02:58.7]} 11. O-O
{[%clk 0:03:02.3]} 11... Nhf6 {[%clk 0:02:54.3]} 12. Qc2 {[%clk 0:03:02.1]}
12... Re8 {[%clk 0:02:50.2]} 13. Nd2 {[%clk 0:03:02.6]} 13... Nf8 {[%clk
0:02:47.4]} 14. Rfe1 {[%clk 0:03:02.9]} 14... Ng6 {[%clk 0:02:44.7]} 15. e4
{[%clk 0:03:02.8]} 15... dxe4 {[%clk 0:02:44.9]} 16. Ndxe4 {[%clk 0:03:03.7]}
16... Nxe4 {[%clk 0:02:35.4]} 17. Bxe4 {[%clk 0:03:04.6]} 17... Be6 {[%clk
0:02:29.3]} 18. d5 {[%clk 0:02:51.7]} 18... cxd5 {[%clk 0:02:15.7]} 19. Bxd5
{[%clk 0:02:51.2]} 19... Nf4 {[%clk 0:01:36.9]} 20. Bxe6 {[%clk 0:02:39.6]}
20... Nxe6 {[%clk 0:01:37.8]} 21. Nd5 {[%clk 0:02:37.7]} 21... Qg5 {[%clk
0:01:36.2]} 22. Ne3 {[%clk 0:02:26.2]} 22... Nf4 {[%clk 0:01:32.2]} 23. Qf5
{[%clk 0:02:18.3]} 23... Qxf5 {[%clk 0:01:24.4]} 24. Nxf5 {[%clk 0:02:19.2]}
24... Nd3 {[%clk 0:01:16.8]} 25. Rxe8+ {[%clk 0:02:18.2]} 25... Rxe8 {[%clk
0:01:17.7]} 26. Rd1 {[%clk 0:02:14.2]} 26... Rd8 {[%clk 0:00:51.2]} 27. Kf1
{[%clk 0:02:05.8]} 27... g6 {[%clk 0:00:48.6]} 28. Ne3 {[%clk 0:01:59.9]} 28...
Kf8 {[%clk 0:00:48.5]} 29. g3 {[%clk 0:01:49.2]} 29... Rd7 {[%clk 0:00:44.6]}
30. Ke2 {[%clk 0:01:40.7]} 30... Nc5 {[%clk 0:00:44.4]} 31. Rc1 {[%clk
0:01:40.3]} 31... b6 {[%clk 0:00:43.3]} 32. b4 {[%clk 0:01:33.4]} 32... Ne4
{[%clk 0:00:42.4]} 33. Rc4 {[%clk 0:01:28.9]} 33... f5 {[%clk 0:00:41.5]} 34. g4
{[%clk 0:01:28.3]} 34... Rd2+ {[%clk 0:00:37.4]} 35. Ke1 {[%clk 0:01:28.9]}
35... Rxa2 {[%clk 0:00:27.3]} 36. gxf5 {[%clk 0:01:29.1]} 36... Nxf2 {[%clk
0:00:25.8]} 37. fxg6 {[%clk 0:01:25.9]} 37... hxg6 {[%clk 0:00:25.8]} 38. Rf4+
{[%clk 0:01:25.8]} 38... Kg7 {[%clk 0:00:21.1]} 39. Rxf2 {[%clk 0:01:26.7]}
39... Ra3 {[%clk 0:00:21.7]} 40. Rf3 {[%clk 0:01:23.3]} 40... Rb3 {[%clk
0:00:20.6]} 41. Nf5+ {[%clk 0:01:23.6]} 1-0

[Event "Early-Titled-Tuesday-Blitz-May-14-2024"]
[Site "Chess.com"]
[Date "2024.05.14"]
[Round "2"]
[White "Masterbeaterr"]
[Black "ZeZacarias"]
[Result "1-0"]
[WhiteElo "2456"]
[BlackElo "2021"]
[TimeControl "180+1"]
[EndTime "8:16:55 PDT"]
[Termination "Masterbeaterr won by resignation"]

1. d4 {[%clk 0:03:00.9]} 1... d5 {[%clk 0:02:59.6]} 2. c4 {[%clk 0:03:01.1]}
2... c6 {[%clk 0:03:00.1]} 3. Nf3 {[%clk 0:03:00.1]} 3... Nf6 {[%clk 0:03:00.5]}
4. Nc3 {[%clk 0:03:00.3]} 4... a6 {[%clk 0:03:00.2]} 5. cxd5 {[%clk 0:02:57.7]}
5... cxd5 {[%clk 0:02:59.3]} 6. Bg5 {[%clk 0:02:57.6]} 6... Ne4 {[%clk
0:02:57.6]} 7. Bh4 {[%clk 0:02:54]} 7... Nxc3 {[%clk 0:02:49.5]} 8. bxc3 {[%clk
0:02:53.3]} 8... Bg4 {[%clk 0:02:45.7]} 9. e3 {[%clk 0:02:49]} 9... Qa5 {[%clk
0:02:41.5]} 10. Qb3 {[%clk 0:02:48.7]} 10... Bxf3 {[%clk 0:02:38.7]} 11. gxf3
{[%clk 0:02:49.6]} 11... Nc6 {[%clk 0:02:34.4]} 12. Bd3 {[%clk 0:02:47.5]} 12...
e6 {[%clk 0:02:29.8]} 13. O-O {[%clk 0:02:40.3]} 13... b5 {[%clk 0:02:29]} 14.
a4 {[%clk 0:02:37.5]} 14... b4 {[%clk 0:02:20.6]} 15. c4 {[%clk 0:02:31.8]}
15... dxc4 {[%clk 0:02:13.6]} 16. Bxc4 {[%clk 0:02:32.7]} 16... Be7 {[%clk
0:02:05.3]} 17. Bxe7 {[%clk 0:02:25.7]} 17... Nxe7 {[%clk 0:02:05.4]} 18. Rab1
{[%clk 0:02:26]} 18... Qg5+ {[%clk 0:02:02.7]} 19. Kh1 {[%clk 0:02:24.7]} 19...
O-O {[%clk 0:01:48.4]} 20. Rg1 {[%clk 0:02:22.6]} 20... Qf5 {[%clk 0:01:46.3]}
21. Be2 {[%clk 0:02:20.7]} 21... a5 {[%clk 0:01:46]} 22. e4 {[%clk 0:02:17.4]}
22... Qf4 {[%clk 0:01:44.3]} 23. Qd3 {[%clk 0:02:10.5]} 23... Ng6 {[%clk
0:01:40.9]} 24. Rg4 {[%clk 0:02:08.8]} 24... Qd6 {[%clk 0:01:36.6]} 25. Rbg1
{[%clk 0:02:09.4]} 25... Rfd8 {[%clk 0:01:32.3]} 26. e5 {[%clk 0:02:06.1]} 26...
Qd5 {[%clk 0:01:26.3]} 27. h4 {[%clk 0:02:04.3]} 27... Kh8 {[%clk 0:00:38.8]}
28. Qe3 {[%clk 0:01:55.4]} 28... Rg8 {[%clk 0:00:36.8]} 29. h5 {[%clk
0:01:53.5]} 29... Ne7 {[%clk 0:00:37]} 30. Bd3 {[%clk 0:01:44.6]} 30... Nf5
{[%clk 0:00:33.3]} 31. Qf4 {[%clk 0:01:38.3]} 31... Rad8 {[%clk 0:00:26.9]} 32.
Bxf5 {[%clk 0:01:32.5]} 32... exf5 {[%clk 0:00:26.7]} 33. Qxf5 {[%clk
0:01:33.4]} 33... b3 {[%clk 0:00:21.9]} 34. h6 {[%clk 0:01:33.4]} 34... f6
{[%clk 0:00:07.9]} 35. hxg7+ {[%clk 0:01:27.6]} 35... Rxg7 {[%clk 0:00:07.6]}
36. Rxg7 {[%clk 0:01:28.5]} 36... Qxf3+ {[%clk 0:00:03.3]} 37. Qxf3 {[%clk
0:01:27.7]} 1-0

[Event "Early-Titled-Tuesday-Blitz-May-14-2024"]
[Site "Chess.com"]
[Date "2024.05.14"]
[Round "2"]
[White "ShazilTheGOAT2006"]
[Black "Nitzan_Steinberg"]
[Result "0-1"]
[WhiteElo "2639"]
[BlackElo "2959"]
[TimeControl "180+1"]
[EndTime "8:16:57 PDT"]
[Termination "Nitzan_Steinberg won by resignation"]

1. e4 {[%clk 0:03:00.9]} 1... c5 {[%clk 0:03:00.2]} 2. Nf3 {[%clk 0:02:58.1]}
2... d6 {[%clk 0:03:00.7]} 3. Bb5+ {[%clk 0:02:57.8]} 3... Bd7 {[%clk
0:02:59.8]} 4. Bxd7+ {[%clk 0:02:56]} 4... Nxd7 {[%clk 0:03:00.7]} 5. O-O {[%clk
0:02:55.2]} 5... Ngf6 {[%clk 0:03:01.3]} 6. Qe2 {[%clk 0:02:54.7]} 6... e6
{[%clk 0:03:01.3]} 7. c4 {[%clk 0:02:53.8]} 7... Ne5 {[%clk 0:03:00.1]} 8. b3
{[%clk 0:02:44]} 8... Be7 {[%clk 0:02:57]} 9. Bb2 {[%clk 0:02:44.2]} 9... Nfd7
{[%clk 0:02:57.6]} 10. d3 {[%clk 0:02:35.8]} 10... Bf6 {[%clk 0:02:52.1]} 11.
Nc3 {[%clk 0:02:28.4]} 11... Nxf3+ {[%clk 0:02:47.7]} 12. Qxf3 {[%clk
0:02:28.1]} 12... Ne5 {[%clk 0:02:48.1]} 13. Qe2 {[%clk 0:02:28.1]} 13... Nc6
{[%clk 0:02:48.2]} 14. Qd2 {[%clk 0:02:24.3]} 14... O-O {[%clk 0:02:45.8]} 15.
Ne2 {[%clk 0:02:24.4]} 15... Bxb2 {[%clk 0:02:36.6]} 16. Qxb2 {[%clk 0:02:24]}
16... d5 {[%clk 0:02:37.5]} 17. cxd5 {[%clk 0:02:14.6]} 17... exd5 {[%clk
0:02:37.7]} 18. Rac1 {[%clk 0:02:12.1]} 18... b6 {[%clk 0:02:07.4]} 19. Nf4
{[%clk 0:02:11.9]} 19... dxe4 {[%clk 0:01:52.7]} 20. dxe4 {[%clk 0:02:11.8]}
20... Nd4 {[%clk 0:01:53.4]} 21. Ne2 {[%clk 0:01:57.9]} 21... Re8 {[%clk
0:01:36.8]} 22. Nxd4 {[%clk 0:01:57.1]} 22... cxd4 {[%clk 0:01:37]} 23. Rfe1
{[%clk 0:01:57]} 23... Qf6 {[%clk 0:01:30.7]} 24. Rcd1 {[%clk 0:01:55.5]} 24...
Rad8 {[%clk 0:01:30.1]} 25. f3 {[%clk 0:01:55.9]} 25... h5 {[%clk 0:01:24.2]}
26. Re2 {[%clk 0:01:54.9]} 26... Rd7 {[%clk 0:01:12]} 27. Red2 {[%clk
0:01:49.6]} 27... Red8 {[%clk 0:01:11.6]} 28. Rd3 {[%clk 0:01:49.8]} 28... h4
{[%clk 0:01:10.5]} 29. h3 {[%clk 0:01:49.4]} 29... Qe5 {[%clk 0:01:10.6]} 30.
Qd2 {[%clk 0:01:48.9]} 30... g5 {[%clk 0:01:09.7]} 31. Rf1 {[%clk 0:01:44.7]}
31... Rc8 {[%clk 0:01:04.5]} 32. Rd1 {[%clk 0:01:44.3]} 32... Rcd8 {[%clk
0:01:02.8]} 33. Rf1 {[%clk 0:01:44.1]} 33... Rd6 {[%clk 0:00:58.9]} 34. Qf2
{[%clk 0:01:29.9]} 34... Kg7 {[%clk 0:00:47]} 35. f4 {[%clk 0:01:24.5]} 35...
Qxe4 {[%clk 0:00:36.2]} 36. fxg5 {[%clk 0:01:22.7]} 36... Qxd3 {[%clk
0:00:29.8]} 37. Qxf7+ {[%clk 0:01:22.1]} 37... Kh8 {[%clk 0:00:30.3]} 38. Qh5+
{[%clk 0:01:13.9]} 38... Qh7 {[%clk 0:00:30.1]} 0-1

[Event "Early-Titled-Tuesday-Blitz-May-14-2024"]
[Site "Chess.com"]
[Date "2024.05.14"]
[Round "2"]
[White "HowTo2Draw"]
[Black "Escudito"]
[Result "0-1"]
[WhiteElo "2535"]
[BlackElo "2349"]
[TimeControl "180+1"]
[EndTime "8:16:58 PDT"]
[Termination "Escudito won by checkmate"]

1. c4 {[%clk 0:03:00.9]} 1... e6 {[%clk 0:02:59.9]} 2. b3 {[%clk 0:02:59.2]}
2... d5 {[%clk 0:03:00.8]} 3. Bb2 {[%clk 0:02:59.7]} 3... c5 {[%clk 0:03:00.8]}
4. d3 {[%clk 0:03:00.1]} 4... Nf6 {[%clk 0:02:59.8]} 5. Nd2 {[%clk 0:03:00.6]}
5... Nc6 {[%clk 0:02:58.9]} 6. e4 {[%clk 0:03:00.3]} 6... d4 {[%clk 0:02:54.5]}
7. f4 {[%clk 0:02:57.8]} 7... e5 {[%clk 0:02:51.3]} 8. f5 {[%clk 0:02:55.8]}
8... g6 {[%clk 0:02:50.5]} 9. g4 {[%clk 0:02:44.2]} 9... h5 {[%clk 0:02:50]} 10.
g5 {[%clk 0:02:42.3]} 10... Ng4 {[%clk 0:02:50.6]} 11. h4 {[%clk 0:02:12.9]}
11... gxf5 {[%clk 0:02:44.3]} 12. exf5 {[%clk 0:02:12.4]} 12... Bxf5 {[%clk
0:02:45.2]} 13. Qf3 {[%clk 0:02:11.8]} 13... Bg6 {[%clk 0:02:43.1]} 14. O-O-O
{[%clk 0:02:11.2]} 14... Qa5 {[%clk 0:02:32.5]} 15. Bh3 {[%clk 0:01:32.5]} 15...
Ne3 {[%clk 0:02:27.8]} 16. Re1 {[%clk 0:01:21.8]} 16... Qxa2 {[%clk 0:02:25]}
17. Rxe3 {[%clk 0:01:21.5]} 17... dxe3 {[%clk 0:02:22.3]} 18. Qxe3 {[%clk
0:01:22.4]} 18... Bg7 {[%clk 0:01:34.1]} 19. Ngf3 {[%clk 0:01:20.4]} 19... O-O
{[%clk 0:01:32.1]} 20. Bd7 {[%clk 0:01:03.8]} 20... Nb4 {[%clk 0:01:29.2]} 21.
Ne1 {[%clk 0:00:48.6]} 21... Rad8 {[%clk 0:01:24.7]} 22. Qxc5 {[%clk 0:00:41.2]}
22... a5 {[%clk 0:01:05.1]} 23. Ba4 {[%clk 0:00:23.4]} 23... Rxd3 {[%clk
0:01:03.4]} 24. Qf2 {[%clk 0:00:09.9]} 24... Rfd8 {[%clk 0:01:00]} 25. Rh2
{[%clk 0:00:09.7]} 25... Rxd2 {[%clk 0:00:57.7]} 26. Qxd2 {[%clk 0:00:09.8]}
26... Qb1# {[%clk 0:00:56.3]} 0-1

[Event "Early-Titled-Tuesday-Blitz-May-14-2024"]
[Site "Chess.com"]
[Date "2024.05.14"]
[Round "2"]
[White "kids2010"]
[Black "Payyappat"]
[Result "1-0"]
[WhiteElo "2776"]
[BlackElo "2529"]
[TimeControl "180+1"]
[EndTime "8:17:00 PDT"]
[Termination "kids2010 won by resignation"]

1. d4 {[%clk 0:03:00.9]} 1... Nf6 {[%clk 0:02:56.7]} 2. c4 {[%clk 0:03:00.4]}
2... c5 {[%clk 0:02:55]} 3. d5 {[%clk 0:03:00.6]} 3... e6 {[%clk 0:02:55.8]} 4.
Nc3 {[%clk 0:03:00.7]} 4... exd5 {[%clk 0:02:56.7]} 5. cxd5 {[%clk 0:03:01.5]}
5... d6 {[%clk 0:02:57.6]} 6. e4 {[%clk 0:03:02]} 6... g6 {[%clk 0:02:58.2]} 7.
h3 {[%clk 0:03:01.6]} 7... Bg7 {[%clk 0:02:59.1]} 8. Nf3 {[%clk 0:03:02]} 8...
O-O {[%clk 0:02:59]} 9. Be3 {[%clk 0:03:02.6]} 9... Re8 {[%clk 0:02:56.7]} 10.
Nd2 {[%clk 0:03:02.8]} 10... Nbd7 {[%clk 0:02:55.1]} 11. Be2 {[%clk 0:02:57.8]}
11... a6 {[%clk 0:02:54.2]} 12. a4 {[%clk 0:02:58]} 12... Rb8 {[%clk 0:02:53.8]}
13. O-O {[%clk 0:02:57.8]} 13... h6 {[%clk 0:02:38.5]} 14. Qc2 {[%clk 0:02:57]}
14... Nh7 {[%clk 0:02:37.6]} 15. Nc4 {[%clk 0:02:56.9]} 15... Ne5 {[%clk
0:02:34.9]} 16. Nxe5 {[%clk 0:02:56]} 16... Rxe5 {[%clk 0:02:35.8]} 17. f4
{[%clk 0:02:53.1]} 17... Re8 {[%clk 0:02:35.5]} 18. a5 {[%clk 0:02:23.1]} 18...
f5 {[%clk 0:02:26.8]} 19. e5 {[%clk 0:02:10.7]} 19... dxe5 {[%clk 0:02:25.5]}
20. fxe5 {[%clk 0:02:11.6]} 20... Bxe5 {[%clk 0:02:18.2]} 21. Bxc5 {[%clk
0:02:08.9]} 21... Qg5 {[%clk 0:02:17.5]} 22. Rf3 {[%clk 0:01:58.1]} 22... Nf6
{[%clk 0:02:04.7]} 23. Raf1 {[%clk 0:01:51.5]} 23... Nh5 {[%clk 0:02:01.6]} 24.
Be3 {[%clk 0:01:41.1]} 24... f4 {[%clk 0:01:58.1]} 25. Ne4 {[%clk 0:01:34.9]}
25... Qf5 {[%clk 0:01:45.3]} 26. Bd3 {[%clk 0:01:33.9]} 26... Qf7 {[%clk
0:01:12.8]} 27. g4 {[%clk 0:01:29.1]} 27... Nf6 {[%clk 0:01:02.3]} 28. Bxf4
{[%clk 0:01:28.3]} 28... Bd4+ {[%clk 0:00:49.4]} 29. Kg2 {[%clk 0:01:27.5]}
29... Nxe4 {[%clk 0:00:40.2]} 30. Bxe4 {[%clk 0:01:27.7]} 30... Ra8 {[%clk
0:00:20.7]} 31. Bxg6 {[%clk 0:01:22.4]} 31... Qxd5 {[%clk 0:00:20.9]} 32. Bxe8
{[%clk 0:01:20.7]} 32... Bf5 {[%clk 0:00:19.9]} 33. Qxf5 {[%clk 0:01:19.7]}
33... Qxf5 {[%clk 0:00:19.3]} 34. gxf5 {[%clk 0:01:20.6]} 34... Rxe8 {[%clk
0:00:18.9]} 35. Rg3+ {[%clk 0:01:20.4]} 35... Kf7 {[%clk 0:00:18.4]} 36. Bxh6
{[%clk 0:01:20.6]} 36... Re2+ {[%clk 0:00:18.3]} 37. Kh1 {[%clk 0:01:21.1]}
37... Rxb2 {[%clk 0:00:18.2]} 38. f6 {[%clk 0:01:21.6]} 38... Re2 {[%clk
0:00:13.7]} 39. Rg7+ {[%clk 0:01:21.2]} 39... Ke6 {[%clk 0:00:11.4]} 40. Re7+
{[%clk 0:01:21.2]} 1-0

[Event "Early-Titled-Tuesday-Blitz-May-14-2024"]
[Site "Chess.com"]
[Date "2024.05.14"]
[Round "2"]
[White "dealshark"]
[Black "scarabee43"]
[Result "0-1"]
[WhiteElo "2563"]
[BlackElo "2821"]
[TimeControl "180+1"]
[EndTime "8:17:02 PDT"]
[Termination "scarabee43 won by resignation"]

1. e4 {[%clk 0:03:00.9]} 1... c5 {[%clk 0:02:59.9]} 2. Nf3 {[%clk 0:03:00.5]}
2... Nc6 {[%clk 0:02:57.9]} 3. d4 {[%clk 0:03:00.3]} 3... cxd4 {[%clk
0:02:57.8]} 4. Nxd4 {[%clk 0:03:00.7]} 4... Nf6 {[%clk 0:02:57]} 5. Nc3 {[%clk
0:02:57.5]} 5... e6 {[%clk 0:02:56.6]} 6. Bg5 {[%clk 0:02:50.6]} 6... h6 {[%clk
0:02:53.8]} 7. Be3 {[%clk 0:02:45.9]} 7... Bb4 {[%clk 0:02:48.2]} 8. Bd3 {[%clk
0:02:39.4]} 8... d5 {[%clk 0:02:45.8]} 9. Nxc6 {[%clk 0:02:28.1]} 9... bxc6
{[%clk 0:02:45.5]} 10. O-O {[%clk 0:02:21.3]} 10... d4 {[%clk 0:02:43.7]} 11. e5
{[%clk 0:02:13.2]} 11... dxc3 {[%clk 0:02:39]} 12. exf6 {[%clk 0:02:13]} 12...
cxb2 {[%clk 0:02:39.5]} 13. fxg7 {[%clk 0:01:55.2]} 13... bxa1=Q {[%clk
0:02:06.6]} 14. Qxa1 {[%clk 0:01:56.1]} 14... Rg8 {[%clk 0:02:06]} 15. Bh7
{[%clk 0:01:55.5]} 15... Ke7 {[%clk 0:02:01.4]} 16. Rd1 {[%clk 0:01:53.3]} 16...
Qe8 {[%clk 0:02:01.6]} 17. Bxg8 {[%clk 0:01:47]} 17... Qxg8 {[%clk 0:02:00.6]}
18. Qd4 {[%clk 0:01:42.7]} 18... Rb8 {[%clk 0:01:56.2]} 19. Bxh6 {[%clk
0:01:05.5]} 19... Rb5 {[%clk 0:01:35.9]} 20. Bf4 {[%clk 0:00:36.6]} 20... e5
{[%clk 0:01:23.5]} 21. Qd8+ {[%clk 0:00:20.5]} 21... Qxd8 {[%clk 0:01:22.7]} 22.
Rxd8 {[%clk 0:00:20.8]} 22... Bd2 {[%clk 0:01:00.5]} 23. h3 {[%clk 0:00:19]}
23... Bxf4 {[%clk 0:00:58.5]} 24. Rd1 {[%clk 0:00:18.3]} 24... Bg4 {[%clk
0:00:57.9]} 25. hxg4 {[%clk 0:00:12]} 25... Rb8 {[%clk 0:00:56.7]} 26. g3 {[%clk
0:00:11.2]} 26... Bg5 {[%clk 0:00:56.3]} 27. f4 {[%clk 0:00:10.7]} 27... exf4
{[%clk 0:00:56.2]} 28. gxf4 {[%clk 0:00:11.2]} 28... Bxf4 {[%clk 0:00:56.6]} 0-1

[Event "Early-Titled-Tuesday-Blitz-May-14-2024"]
[Site "Chess.com"]
[Date "2024.05.14"]
[Round "2"]
[White "motivated_bishop"]
[Black "blitzking1729"]
[Result "1-0"]
[WhiteElo "2504"]
[BlackElo "2751"]
[TimeControl "180+1"]
[EndTime "8:17:02 PDT"]
[Termination "motivated_bishop won by resignation"]

1. d4 {[%clk 0:03:00.9]} 1... e6 {[%clk 0:02:56.3]} 2. e4 {[%clk 0:02:57.3]}
2... d5 {[%clk 0:02:55.6]} 3. Nc3 {[%clk 0:02:56.4]} 3... h6 {[%clk 0:02:52.1]}
4. Nf3 {[%clk 0:02:53.2]} 4... dxe4 {[%clk 0:02:48.3]} 5. Nxe4 {[%clk
0:02:52.9]} 5... Nf6 {[%clk 0:02:48.2]} 6. Bd3 {[%clk 0:02:52.8]} 6... Nbd7
{[%clk 0:02:48.1]} 7. O-O {[%clk 0:02:50.7]} 7... Be7 {[%clk 0:02:48.2]} 8. c4
{[%clk 0:02:46.5]} 8... c5 {[%clk 0:02:42.1]} 9. b3 {[%clk 0:02:43.6]} 9... cxd4
{[%clk 0:02:36.3]} 10. Nxd4 {[%clk 0:02:43.7]} 10... Ne5 {[%clk 0:02:26.9]} 11.
Bc2 {[%clk 0:02:37.9]} 11... Nxe4 {[%clk 0:02:23.7]} 12. Bxe4 {[%clk 0:02:37.4]}
12... O-O {[%clk 0:02:22]} 13. Bb2 {[%clk 0:02:31.1]} 13... Nd7 {[%clk
0:02:13.7]} 14. Bc2 {[%clk 0:02:09.2]} 14... Bf6 {[%clk 0:02:08]} 15. Qd3 {[%clk
0:02:08.8]} 15... g6 {[%clk 0:02:01.2]} 16. Nxe6 {[%clk 0:01:58.9]} 16... Qe7
{[%clk 0:01:48.5]} 17. Nxf8 {[%clk 0:01:55.6]} 17... Bxb2 {[%clk 0:01:42.5]} 18.
Rab1 {[%clk 0:01:53.9]} 18... Nc5 {[%clk 0:01:22.8]} 19. Nxg6 {[%clk 0:00:58.3]}
19... fxg6 {[%clk 0:01:18.5]} 20. Qxg6+ {[%clk 0:00:58.5]} 20... Bg7 {[%clk
0:01:17.2]} 21. Rfe1 {[%clk 0:00:54.1]} 21... Ne6 {[%clk 0:00:57]} 22. Bf5
{[%clk 0:00:46.1]} 22... Nf8 {[%clk 0:00:28]} 23. Rxe7 {[%clk 0:00:44.7]} 23...
Nxg6 {[%clk 0:00:27.1]} 24. Bxg6 {[%clk 0:00:45.6]} 1-0

[Event "Early-Titled-Tuesday-Blitz-May-14-2024"]
[Site "Chess.com"]
[Date "2024.05.14"]
[Round "2"]
[White "WilsonPalencia21"]
[Black "Eagle_2019"]
[Result "0-1"]
[WhiteElo "2586"]
[BlackElo "2854"]
[TimeControl "180+1"]
[EndTime "8:17:03 PDT"]
[Termination "Eagle_2019 won by resignation"]

1. d4 {[%clk 0:03:00.9]} 1... d5 {[%clk 0:02:59.7]} 2. c4 {[%clk 0:03:00.9]}
2... e6 {[%clk 0:02:59.7]} 3. Nf3 {[%clk 0:03:01.8]} 3... Nf6 {[%clk 0:02:58.4]}
4. Nc3 {[%clk 0:03:01.5]} 4... c6 {[%clk 0:02:54.6]} 5. Bg5 {[%clk 0:03:00.9]}
5... Nbd7 {[%clk 0:02:48.7]} 6. e3 {[%clk 0:02:53.8]} 6... Qa5 {[%clk 0:02:48]}
7. Nd2 {[%clk 0:02:53.8]} 7... dxc4 {[%clk 0:02:47.8]} 8. Bxf6 {[%clk
0:02:53.5]} 8... Nxf6 {[%clk 0:02:47.6]} 9. Nxc4 {[%clk 0:02:54.1]} 9... Qc7
{[%clk 0:02:47.2]} 10. Rc1 {[%clk 0:02:53.6]} 10... Bd6 {[%clk 0:02:45.8]} 11.
Nxd6+ {[%clk 0:02:47.5]} 11... Qxd6 {[%clk 0:02:45.5]} 12. Be2 {[%clk
0:02:47.8]} 12... O-O {[%clk 0:02:45.1]} 13. O-O {[%clk 0:02:47.7]} 13... e5
{[%clk 0:02:45.2]} 14. dxe5 {[%clk 0:02:40.4]} 14... Qxe5 {[%clk 0:02:46.1]} 15.
h3 {[%clk 0:02:40.9]} 15... Be6 {[%clk 0:02:45.5]} 16. Qa4 {[%clk 0:02:39.6]}
16... Rfd8 {[%clk 0:02:43.4]} 17. Rfd1 {[%clk 0:02:36.8]} 17... Nd5 {[%clk
0:02:36.7]} 18. Qe4 {[%clk 0:02:21.8]} 18... Qf6 {[%clk 0:02:28.8]} 19. Nxd5
{[%clk 0:01:54.4]} 19... Bxd5 {[%clk 0:02:29.7]} 20. Qa4 {[%clk 0:01:52.4]}
20... Qxb2 {[%clk 0:02:25.8]} 21. Bd3 {[%clk 0:01:47.6]} 21... Bxg2 {[%clk
0:01:55.2]} 22. Rc2 {[%clk 0:01:41.2]} 22... Qf6 {[%clk 0:01:51.6]} 23. Kxg2
{[%clk 0:01:40.7]} 23... Rxd3 {[%clk 0:01:51.6]} 24. Rb1 {[%clk 0:01:08.6]}
24... Rd7 {[%clk 0:01:40.8]} 25. Qg4 {[%clk 0:01:06.5]} 25... Rad8 {[%clk
0:01:38.2]} 26. Rb4 {[%clk 0:01:01.9]} 26... Qg6 {[%clk 0:01:25.9]} 27. a4
{[%clk 0:00:57.9]} 27... Qxc2 {[%clk 0:01:22.4]} 28. Re4 {[%clk 0:00:53.2]}
28... a5 {[%clk 0:01:10.7]} 29. Qf5 {[%clk 0:00:45.4]} 29... Qd2 {[%clk
0:01:03.9]} 30. Kh2 {[%clk 0:00:37.6]} 30... Qd5 {[%clk 0:01:02]} 31. Re5 {[%clk
0:00:35.1]} 31... Qd6 {[%clk 0:00:58.8]} 32. f4 {[%clk 0:00:34]} 32... g6 {[%clk
0:00:54.1]} 33. Qe4 {[%clk 0:00:33.4]} 33... Qd2+ {[%clk 0:00:50.9]} 34. Kg3
{[%clk 0:00:33]} 34... Qe1+ {[%clk 0:00:50.5]} 0-1

[Event "Early-Titled-Tuesday-Blitz-May-14-2024"]
[Site "Chess.com"]
[Date "2024.05.14"]
[Round "2"]
[White "KogotBobra17"]
[Black "cycygogne"]
[Result "1-0"]
[WhiteElo "2690"]
[BlackElo "2198"]
[TimeControl "180+1"]
[EndTime "8:17:07 PDT"]
[Termination "KogotBobra17 won by resignation"]

1. e4 {[%clk 0:03:00.9]} 1... d5 {[%clk 0:03:00]} 2. exd5 {[%clk 0:03:01.8]}
2... Qxd5 {[%clk 0:03:00.5]} 3. Nc3 {[%clk 0:03:01.1]} 3... Qd6 {[%clk
0:03:00.7]} 4. d4 {[%clk 0:03:01]} 4... Nf6 {[%clk 0:03:00.6]} 5. Nf3 {[%clk
0:03:01]} 5... Bg4 {[%clk 0:03:00.6]} 6. h3 {[%clk 0:02:59.9]} 6... Bh5 {[%clk
0:03:00.2]} 7. g4 {[%clk 0:02:59]} 7... Bg6 {[%clk 0:03:00.1]} 8. Bg2 {[%clk
0:02:58.5]} 8... c6 {[%clk 0:02:59.8]} 9. Ne5 {[%clk 0:02:57.4]} 9... Nbd7
{[%clk 0:02:53.5]} 10. f4 {[%clk 0:02:57.4]} 10... Nxe5 {[%clk 0:02:35.8]} 11.
dxe5 {[%clk 0:02:51.6]} 11... Qxd1+ {[%clk 0:02:13.5]} 12. Nxd1 {[%clk
0:02:50.2]} 12... Bxc2 {[%clk 0:02:09.9]} 13. exf6 {[%clk 0:02:50.1]} 13... exf6
{[%clk 0:02:10.2]} 14. Ne3 {[%clk 0:02:48.5]} 14... Bd3 {[%clk 0:02:06.4]} 15.
Bd2 {[%clk 0:02:45.2]} 15... O-O-O {[%clk 0:02:05.8]} 16. O-O-O {[%clk
0:02:45.2]} 16... Bc5 {[%clk 0:02:03.7]} 17. Rhe1 {[%clk 0:02:42]} 17... Rd7
{[%clk 0:01:28.3]} 18. Bf1 {[%clk 0:01:52.7]} 18... Be4 {[%clk 0:01:04.9]} 19.
Bc4 {[%clk 0:01:43.7]} 19... Rhd8 {[%clk 0:01:03.1]} 20. Nf5 {[%clk 0:01:42.4]}
20... Bf3 {[%clk 0:00:45.2]} 21. Be2 {[%clk 0:01:41.5]} 21... Be4 {[%clk
0:00:22.8]} 22. Ng3 {[%clk 0:01:00.6]} 22... Bd5 {[%clk 0:00:22.8]} 23. Nh5
{[%clk 0:01:00.8]} 23... Bxa2 {[%clk 0:00:20.1]} 24. Bc3 {[%clk 0:00:58.1]}
24... Be3+ {[%clk 0:00:19.2]} 25. Kc2 {[%clk 0:00:58.2]} 25... c5 {[%clk
0:00:17.4]} 26. Rxd7 {[%clk 0:00:53.7]} 26... Rxd7 {[%clk 0:00:18.3]} 27. Bb5
{[%clk 0:00:53.8]} 27... Re7 {[%clk 0:00:17.1]} 28. Nxg7 {[%clk 0:00:53.3]}
28... a6 {[%clk 0:00:16.5]} 29. Nf5 {[%clk 0:00:52.9]} 29... Re8 {[%clk
0:00:14.6]} 30. Nd6+ {[%clk 0:00:52.8]} 1-0